fUSD/lending_fUSD_20251225
["ID","MTS","AMOUNT","RATE_DAILY","PERIOD"]
[399784000,1766674248806,-150.0,0.00016302,2]
[399784001,1766674248816,-150.0,0.00016307,2]
[399784002,1766674248826,-5874.865,0.00016317,2]
[399784003,1766674248836,-354.09,0.00016317,2]
[399784004,1766674248846,-156.21307766,0.00016317,2]
[399784005,1766674248856,-292.93832902,0.00016317,2]
[399784006,1766674248866,-257.56632954,0.00016317,2]
[399784007,1766674248876,-189.76876158,0.00016317,2]
[399784008,1766674248886,-203.57359453,0.00016317,2]
[399784009,1766674248897,-150.0,0.00016317,2]
[399784010,1766674248907,-396.36220514,0.00016317,2]
[399784011,1766674248917,-150.0,0.00016324,2]
[399784012,1766674248928,-156.21307766,0.00016334,2]
[399784013,1766674248938,-292.93832902,0.00016334,2]
[399784014,1766674248948,-257.56632954,0.00016334,2]
[399784015,1766674248963,-189.76876158,0.00016334,2]
[399784016,1766674248974,-203.57359453,0.00016334,2]
[399784017,1766674248985,-396.36220514,0.00016334,2]
[399784018,1766674248995,-150.0,0.00016341,2]
[399784019,1766674249005,-150.0,0.00016344,2]
[399784020,1766674249015,-150.0,0.00016347,2]
[399784021,1766674249025,-150.0,0.00016349,2]
[399784022,1766674249036,-150.0,0.00016349,2]
[399784023,1766674249046,-156.21307766,0.00016351,2]
[399784024,1766674249056,-292.93832902,0.00016351,2]
[399784025,1766674249066,-257.56632954,0.00016351,2]
[399784026,1766674249077,-189.76876158,0.00016351,2]
[399784027,1766674249087,-203.57359453,0.00016351,2]
[399784028,1766674249099,-396.36220514,0.00016351,2]
[399784029,1766674249109,-156.21307766,0.00016369,2]
[399784030,1766674249119,-292.93832902,0.00016369,2]
[399784031,1766674249131,-257.56632954,0.00016369,2]
[399784032,1766674249142,-189.76876158,0.00016369,2]
[399784033,1766674249153,-203.57359453,0.00016369,2]
[399784034,1766674249166,-150.0,0.00016369,2]
[399784035,1766674249176,-396.36220514,0.00016369,2]
[399784036,1766674249187,-150.0,0.00016369,2]
[399784037,1766674249197,-150.0,0.00016375,2]
[399784038,1766674249207,-156.21307766,0.00016386,2]
[399784039,1766674249218,-292.93832902,0.00016386,2]
[399784040,1766674249231,-257.56632954,0.00016386,2]
[399784041,1766674249241,-189.76876158,0.00016386,2]
[399784042,1766674249252,-203.57359453,0.00016386,2]
[399784043,1766674249263,-396.36220514,0.00016386,2]
[399784044,1766674249273,-150.0,0.00016389,2]
[399784045,1766674249283,-150.0,0.00016391,2]
[399784046,1766674249293,-228.0,0.000164,2]
[399784047,1766674249303,-319.0,0.000164,2]
[399784048,1766674249314,-182.0,0.000164,2]
[399784049,1766674249325,-184.24951816,0.000164,2]
[399784050,1766674249338,-156.21307766,0.00016403,2]
[399784051,1766674249349,-292.93832902,0.00016403,2]
[399784052,1766674249359,-257.56632954,0.00016403,2]
[399784053,1766674249370,-189.76876158,0.00016403,2]
[399784054,1766674249382,-203.57359453,0.00016403,2]
[399784055,1766674249393,-396.36220514,0.00016403,2]
[399784056,1766674249403,-150.0,0.00016409,2]
[399784057,1766674249415,-150.0,0.00016413,2]
[399784058,1766674249425,-156.21307766,0.0001642,2]
[399784059,1766674249435,-292.93832902,0.0001642,2]
[399784060,1766674249445,-257.56632954,0.0001642,2]
[399784061,1766674249456,-189.76876158,0.0001642,2]
[399784062,1766674249468,-150.0,0.0001642,2]
[399784063,1766674249479,-203.57359453,0.0001642,2]
[399784064,1766674249491,-150.0,0.0001642,2]
[399784065,1766674249502,-396.36220514,0.0001642,2]
[399784066,1766674249512,-150.0,0.0001642,2]
[399784067,1766674249523,-150.0,0.0001642,2]
[399784068,1766674249534,-640.24385345,0.00016434,2]
[399784069,1766674249544,-150.0,0.00016435,2]
[399784070,1766674249562,-150.0,0.00016435,2]
[399784071,1766674249580,-156.21307766,0.00016437,2]
[399784072,1766674249590,-292.93832902,0.00016437,2]
[399784073,1766674249601,-257.56632954,0.00016437,2]
[399784074,1766674249612,-189.76876158,0.00016437,2]
[399784075,1766674249622,-203.57359453,0.00016437,2]
[399784076,1766674249633,-396.36220514,0.00016437,2]
[399784077,1766674249644,-500.0,0.00016438,2]
[399784078,1766674249653,-500.0,0.00016438,2]
[399784079,1766674249664,-500.0,0.00016438,2]
[399784080,1766674249674,-500.0,0.00016438,2]
[399784081,1766674249685,-500.0,0.00016438,2]
[399784082,1766674249695,-500.0,0.00016438,2]
[399784083,1766674249704,-500.0,0.00016438,2]
[399784084,1766674249714,-500.0,0.00016438,2]
[399784085,1766674249723,-500.0,0.00016438,2]
[399784086,1766674249733,-500.0,0.00016438,2]
[399784087,1766674249743,-500.0,0.00016438,2]
[399784088,1766674249754,-500.0,0.00016438,2]
[399784089,1766674249765,-500.0,0.00016438,2]
[399784090,1766674249775,-500.0,0.00016438,2]
[399784091,1766674249786,-500.0,0.00016438,2]
[399784092,1766674249797,-500.0,0.00016438,2]
[399784093,1766674249808,-500.0,0.00016438,2]
[399784094,1766674249818,-500.0,0.00016438,2]
[399784095,1766674249829,-500.0,0.00016438,2]
[399784096,1766674249839,-500.0,0.00016438,2]
[399784097,1766674249850,-500.0,0.00016438,2]
[399784098,1766674249860,-500.0,0.00016438,2]
[399784099,1766674249871,-500.0,0.00016438,2]
[399784100,1766674249882,-500.0,0.00016438,2]
[399784101,1766674249892,-500.0,0.00016438,2]
[399784102,1766674249902,-500.0,0.00016438,2]
[399784103,1766674249913,-500.0,0.00016438,2]
[399784104,1766674249928,-500.0,0.00016438,2]
[399784105,1766674249939,-500.0,0.00016438,2]
[399784106,1766674249950,-500.0,0.00016438,2]
[399784107,1766674249960,-500.0,0.00016438,2]
[399784108,1766674249971,-500.0,0.00016438,2]
[399784109,1766674249981,-500.0,0.00016438,2]
[399784110,1766674249991,-500.0,0.00016438,2]
[399784111,1766674250002,-500.0,0.00016438,2]
[399784112,1766674250013,-572.23377298,0.00016438,2]
[399784113,1766674250023,-656.32002799,0.00016438,2]
[399784114,1766674250034,-656.32002799,0.00016438,2]
[399784115,1766674250044,-656.32002799,0.00016438,2]
[399784116,1766674250054,-656.32002799,0.00016438,2]
[399784117,1766674250066,-656.32002799,0.00016438,2]
[399784118,1766674250076,-656.32002799,0.00016438,2]
[399784119,1766674250086,-656.32002799,0.00016438,2]
[399784120,1766674250096,-656.32002799,0.00016438,2]
[399784121,1766674250107,-656.32002799,0.00016438,2]
[399784122,1766674250117,-656.32002799,0.00016438,2]
[399784123,1766674250126,-656.32002799,0.00016438,2]
[399784124,1766674250136,-656.32002799,0.00016438,2]
[399784125,1766674250147,-656.32002799,0.00016438,2]
[399784126,1766674250158,-656.32002799,0.00016438,2]
[399784127,1766674250169,-656.32002799,0.00016438,2]
[399784128,1766674250180,-656.32002799,0.00016438,2]
[399784129,1766674250190,-656.32002799,0.00016438,2]
[399784130,1766674250201,-656.32002799,0.00016438,2]
[399784131,1766674250211,-656.32002799,0.00016438,2]
[399784132,1766674250222,-656.32002799,0.00016438,2]
[399784133,1766674250232,-656.32002799,0.00016438,2]
[399784134,1766674250243,-656.32002799,0.00016438,2]
[399784135,1766674250253,-656.32002799,0.00016438,2]
[399784136,1766674250264,-656.32002799,0.00016438,2]
[399784137,1766674250275,-656.32002799,0.00016438,2]
[399784138,1766674250285,-656.32002799,0.00016438,2]
[399784139,1766674250296,-656.32002799,0.00016438,2]
[399784140,1766674250307,-656.32002799,0.00016438,2]
[399784141,1766674250317,-656.32002799,0.00016438,2]
[399784142,1766674250328,-656.32002799,0.00016438,2]
[399784143,1766674250342,-656.32002799,0.00016438,2]
[399784144,1766674250353,-656.32002799,0.00016438,2]
[399784145,1766674250363,-656.32002799,0.00016438,2]
[399784146,1766674250375,-656.32002799,0.00016438,2]
[399784147,1766674250385,-656.32002799,0.00016438,2]
[399784148,1766674250395,-656.32002799,0.00016438,2]
[399784149,1766674250406,-656.32002799,0.00016438,2]
[399784150,1766674250417,-656.32002799,0.00016438,2]
[399784151,1766674250426,-656.32002799,0.00016438,2]
[399784152,1766674250436,-627.60602676,0.00016438,2]
[399784153,1766674250446,-627.60602676,0.00016438,2]
[399784154,1766674250456,-627.60602676,0.00016438,2]
[399784155,1766674250466,-627.60602676,0.00016438,2]
[399784156,1766674250476,-627.60602676,0.00016438,2]
[399784157,1766674250486,-627.60602676,0.00016438,2]
[399784158,1766674250496,-627.60602676,0.00016438,2]
[399784159,1766674250506,-627.60602676,0.00016438,2]
[399784160,1766674250517,-627.60602676,0.00016438,2]
[399784161,1766674250527,-627.60602676,0.00016438,2]
[399784162,1766674250538,-627.60602676,0.00016438,2]
[399784163,1766674250548,-627.60602676,0.00016438,2]
[399784164,1766674250558,-627.60602676,0.00016438,2]
[399784165,1766674250569,-627.60602676,0.00016438,2]
[399784166,1766674250579,-627.60602676,0.00016438,2]
[399784167,1766674250589,-627.60602676,0.00016438,2]
[399784168,1766674250599,-1115.7440475,0.00016438,2]
[399784169,1766674250608,-500.0,0.00016438,4]
[399784170,1766674250618,-809.0,0.00016438,2]
[399784171,1766674250629,-716.0,0.00016438,2]
[399784172,1766674250639,-800.0,0.00016438,2]
[399784173,1766674250650,-150.0,0.00016443,2]
[399784174,1766674250660,-552.65056801,0.00016444,2]
[399784175,1766674250671,-324.0,0.00016451,2]
[399784176,1766674250683,-156.21307766,0.00016454,2]
[399784177,1766674250693,-292.93832902,0.00016454,2]
[399784178,1766674250703,-257.56632954,0.00016454,2]
[399784179,1766674250714,-189.76876158,0.00016454,2]
[399784180,1766674250727,-203.57359453,0.00016454,2]
[399784181,1766674250738,-396.36220514,0.00016454,2]
[399784182,1766674250748,-150.0,0.00016457,2]
[399784183,1766674250758,-500.0,0.00016465,4]
[399784184,1766674250769,-156.21307766,0.00016472,2]
[399784185,1766674250780,-292.93832902,0.00016472,2]
[399784186,1766674250790,-257.56632954,0.00016472,2]
[399784187,1766674250801,-189.76876158,0.00016472,2]
[399784188,1766674250811,-203.57359453,0.00016472,2]
[399784189,1766674250822,-150.0,0.00016472,2]
[399784190,1766674250832,-396.36220514,0.00016472,2]
[399784191,1766674250842,-150.0,0.00016477,2]
[399784192,1766674250852,-150.0,0.00016479,2]
[399784193,1766674250862,-150.0,0.00016481,2]
[399784194,1766674250873,-156.21307766,0.00016489,2]
[399784195,1766674250882,-292.93832902,0.00016489,2]
[399784196,1766674250892,-257.56632954,0.00016489,2]
[399784197,1766674250901,-189.76876158,0.00016489,2]
[399784198,1766674250911,-203.57359453,0.00016489,2]
[399784199,1766674250922,-396.36220514,0.00016489,2]
[399784200,1766674250933,-150.0,0.00016491,2]
[399784201,1766674250943,-500.0,0.00016493,4]
[399784202,1766674250953,-150.0,0.00016501,2]
[399784203,1766674250963,-250.0,0.00016505,2]
[399784204,1766674250974,-156.21307766,0.00016506,2]
[399784205,1766674250984,-292.93832902,0.00016506,2]
[399784206,1766674250996,-257.56632954,0.00016506,2]
[399784207,1766674251006,-189.76876158,0.00016506,2]
[399784208,1766674251016,-203.57359453,0.00016506,2]
[399784209,1766674251026,-396.36220514,0.00016506,2]
[399784210,1766674251036,-150.0,0.00016511,2]
[399784211,1766674251047,-500.0,0.0001652,4]
[399784212,1766674251058,-156.21307766,0.00016523,2]
[399784213,1766674251069,-292.93832902,0.00016523,2]
[399784214,1766674251081,-257.56632954,0.00016523,2]
[399784215,1766674251092,-189.76876158,0.00016523,2]
[399784216,1766674251103,-203.57359453,0.00016523,2]
[399784217,1766674251113,-150.0,0.00016523,2]
[399784218,1766674251124,-396.36220514,0.00016523,2]
[399784219,1766674251134,-150.0,0.00016523,2]
[399784220,1766674251144,-150.0,0.00016527,2]
[399784221,1766674251155,-156.21307766,0.0001654,2]
[399784222,1766674251166,-292.93832902,0.0001654,2]
[399784223,1766674251176,-257.56632954,0.0001654,2]
[399784224,1766674251186,-189.76876158,0.0001654,2]
[399784225,1766674251197,-203.57359453,0.0001654,2]
[399784226,1766674251207,-396.36220514,0.0001654,2]
[399784227,1766674251216,-150.0,0.00016545,2]
[399784228,1766674251226,-150.0,0.00016545,2]
[399784229,1766674251236,-6621.61796684,0.00016545,2]
[399784230,1766674251246,-500.0,0.00016548,4]
[399784231,1766674251256,-166.66,0.00016552,2]
[399784232,1766674251267,-156.21307766,0.00016557,2]
[399784233,1766674251277,-292.93832902,0.00016557,2]
[399784234,1766674251287,-257.56632954,0.00016557,2]
[399784235,1766674251297,-189.76876158,0.00016557,2]
[399784236,1766674251307,-203.57359453,0.00016557,2]
[399784237,1766674251317,-396.36220514,0.00016557,2]
[399784238,1766674251328,-6609.585175,0.00016559,2]
[399784239,1766674251342,-909.3687499,0.00016559,2]
[399784240,1766674251353,-150.0,0.00016562,2]
[399784241,1766674251364,-150.0,0.00016562,2]
[399784242,1766674251375,-150.0,0.00016562,2]
[399784243,1766674251386,-4224.8617779,0.00016567,2]
[399784244,1766674251396,-150.0,0.00016567,2]
[399784245,1766674251407,-168.0,0.00016569,2]
[399784246,1766674251417,-1700.8936921,0.00016573,2]
[399784247,1766674251427,-27745.2801652,0.00016573,2]
[399784248,1766674251438,-4635.1643992,0.00016573,2]
[399784249,1766674251449,-150.0,0.00016573,2]
[399784250,1766674251460,-2351.0,0.00016574,2]
[399784251,1766674251471,-156.21307766,0.00016575,2]
[399784252,1766674251482,-292.93832902,0.00016575,2]
[399784253,1766674251492,-257.56632954,0.00016575,2]
[399784254,1766674251502,-189.76876158,0.00016575,2]
[399784255,1766674251513,-203.57359453,0.00016575,2]
[399784256,1766674251524,-150.0,0.00016575,2]
[399784257,1766674251534,-396.36220514,0.00016575,2]
[399784258,1766674251545,-500.0,0.00016575,4]
[399784259,1766674251556,-150.0,0.00016579,2]
[399784260,1766674251567,-519.0,0.00016582,2]
[399784261,1766674251577,-150.0,0.00016589,2]
[399784262,1766674251587,-156.21307766,0.00016592,2]
[399784263,1766674251598,-292.93832902,0.00016592,2]
[399784264,1766674251608,-257.56632954,0.00016592,2]
[399784265,1766674251620,-189.76876158,0.00016592,2]
[399784266,1766674251630,-203.57359453,0.00016592,2]
[399784267,1766674251641,-396.36220514,0.00016592,2]
[399784268,1766674251651,-500.0,0.00016602,4]
[399784269,1766674251661,-156.21307766,0.00016609,2]
[399784270,1766674251672,-292.93832902,0.00016609,2]
[399784271,1766674251682,-257.56632954,0.00016609,2]
[399784272,1766674251693,-189.76876158,0.00016609,2]
[399784273,1766674251703,-203.57359453,0.00016609,2]
[399784274,1766674251713,-396.36220514,0.00016609,2]
[399784275,1766674251723,-150.0,0.00016611,2]
[399784276,1766674251733,-150.0,0.00016613,2]
[399784277,1766674251743,-150.0,0.00016619,2]
[399784278,1766674251754,-156.21307766,0.00016626,2]
[399784279,1766674251764,-292.93832902,0.00016626,2]
[399784280,1766674251774,-257.56632954,0.00016626,2]
[399784281,1766674251784,-189.76876158,0.00016626,2]
[399784282,1766674251793,-203.57359453,0.00016626,2]
[399784283,1766674251804,-150.0,0.00016626,2]
[399784284,1766674251814,-396.36220514,0.00016626,2]
[399784285,1766674251824,-500.0,0.0001663,4]
[399784286,1766674251835,-150.0,0.00016632,2]
[399784287,1766674251846,-150.0,0.00016633,2]
[399784288,1766674251855,-215.0738,0.00016641,2]
[399784289,1766674251865,-156.21307766,0.00016643,2]
[399784290,1766674251876,-292.93832902,0.00016643,2]
[399784291,1766674251887,-257.56632954,0.00016643,2]
[399784292,1766674251897,-189.76876158,0.00016643,2]
[399784293,1766674251907,-203.57359453,0.00016643,2]
[399784294,1766674251918,-396.36220514,0.00016643,2]
[399784295,1766674251927,-150.0,0.00016647,2]
[399784296,1766674251938,-150.0,0.00016655,2]
[399784297,1766674251949,-500.0,0.00016657,4]
[399784298,1766674251959,-7013.61277048,0.0001666,2]
[399784299,1766674251968,-156.21307766,0.0001666,2]
[399784300,1766674251979,-292.93832902,0.0001666,2]
[399784301,1766674251990,-257.56632954,0.0001666,2]
[399784302,1766674252000,-189.76876158,0.0001666,2]
[399784303,1766674252010,-203.57359453,0.0001666,2]
[399784304,1766674252019,-396.36220514,0.0001666,2]
[399784305,1766674252030,-150.0,0.00016665,2]
[399784306,1766674252041,-156.21307766,0.00016677,2]
[399784307,1766674252052,-292.93832902,0.00016677,2]
[399784308,1766674252063,-257.56632954,0.00016677,2]
[399784309,1766674252073,-189.76876158,0.00016677,2]
[399784310,1766674252083,-203.57359453,0.00016677,2]
[399784311,1766674252094,-150.0,0.00016677,2]
[399784312,1766674252105,-396.36220514,0.00016677,2]
[399784313,1766674252116,-150.0,0.00016677,2]
[399784314,1766674252127,-150.0,0.00016681,2]
[399784315,1766674252137,-218.80351721,0.00016685,4]
[399784316,1766674252146,-156.21307766,0.00016695,2]
[399784317,1766674252157,-292.93832902,0.00016695,2]
[399784318,1766674252167,-257.56632954,0.00016695,2]
[399784319,1766674252177,-189.76876158,0.00016695,2]
[399784320,1766674252187,-203.57359453,0.00016695,2]
[399784321,1766674252197,-396.36220514,0.00016695,2]
[399784322,1766674252208,-416.372297,0.00016695,2]
[399784323,1766674252219,-416.372297,0.00016695,2]
[399784324,1766674252229,-416.372297,0.00016695,2]
[399784325,1766674252238,-416.372297,0.00016695,2]
[399784326,1766674252249,-150.0,0.000167,2]
[399784327,1766674252261,-150.0,0.00016703,2]
[399784328,1766674252271,-150.0,0.00016703,2]
[399784329,1766674252282,-150.0,0.00016703,2]
[399784330,1766674252293,-150.0,0.00016711,2]
[399784331,1766674252303,-156.21307766,0.00016712,2]
[399784332,1766674252314,-292.93832902,0.00016712,2]
[399784333,1766674252324,-257.56632954,0.00016712,2]
[399784334,1766674252336,-189.76876158,0.00016712,2]
[399784335,1766674252347,-203.57359453,0.00016712,2]
[399784336,1766674252357,-396.36220514,0.00016712,2]
[399784337,1766674252368,-163.74,0.00016712,2]
[399784338,1766674252379,-150.0,0.00016715,2]
[399784339,1766674252391,-150.0,0.00016722,2]
[399784340,1766674252401,-156.21307766,0.00016729,2]
[399784341,1766674252414,-292.93832902,0.00016729,2]
[399784342,1766674252425,-257.56632954,0.00016729,2]
[399784343,1766674252437,-189.76876158,0.00016729,2]
[399784344,1766674252447,-203.57359453,0.00016729,2]
[399784345,1766674252459,-150.0,0.00016729,2]
[399784346,1766674252470,-396.36220514,0.00016729,2]
[399784347,1766674252480,-151.0,0.00016729,2]
[399784348,1766674252491,-151.0,0.00016729,2]
[399784349,1766674252501,-151.0,0.00016729,2]
[399784350,1766674252512,-151.0,0.00016731,2]
[399784351,1766674252523,-151.0,0.00016731,2]
[399784352,1766674252533,-151.0,0.00016731,2]
[399784353,1766674252544,-500.0,0.00016731,2]
[399784354,1766674252554,-598.60555363,0.00016731,2]
[399784355,1766674252565,-500.0,0.00016731,2]
[399784356,1766674252575,-308.61264672,0.00016731,2]
[399784357,1766674252587,-500.0,0.00016731,2]
[399784358,1766674252597,-1000.0,0.00016731,2]
[399784359,1766674252609,-500.0,0.00016731,2]
[399784360,1766674252620,-500.0,0.00016731,2]
[399784361,1766674252749,-559.28446362,0.00016731,2]
[399784362,1766674252797,-500.0,0.00016731,2]
[399784363,1766674252808,-500.0,0.00016731,2]
[399784364,1766674252818,-500.0,0.00016731,2]
[399784365,1766674252829,-500.0,0.00016731,2]
[399784366,1766674252840,-207.3850141,0.00016731,2]
[399784367,1766674252850,-500.0,0.00016731,2]
[399784368,1766674252860,-500.0,0.00016731,2]
[399784369,1766674252870,-500.0,0.00016731,2]
[399784370,1766674252881,-500.0,0.00016731,2]
[399784371,1766674252891,-500.0,0.00016731,2]
[399784372,1766674252902,-500.0,0.00016731,2]
[399784373,1766674252913,-150.0,0.00016744,2]
[399784374,1766674252923,-156.21307766,0.00016746,2]
[399784375,1766674252934,-292.93832902,0.00016746,2]
[399784376,1766674252944,-257.56632954,0.00016746,2]
[399784377,1766674252955,-189.76876158,0.00016746,2]
[399784378,1766674252965,-203.57359453,0.00016746,2]
[399784379,1766674252975,-396.36220514,0.00016746,2]
[399784380,1766674252986,-150.0,0.00016748,2]
[399784381,1766674252996,-150.0,0.00016757,2]
[399784382,1766674253006,-156.21307766,0.00016763,2]
[399784383,1766674253018,-292.93832902,0.00016763,2]
[399784384,1766674253028,-257.56632954,0.00016763,2]
[399784385,1766674253039,-189.76876158,0.00016763,2]
[399784386,1766674253050,-203.57359453,0.00016763,2]
[399784387,1766674253060,-396.36220514,0.00016763,2]
[399784388,1766674253071,-150.0,0.00016766,2]
[399784389,1766674253083,-150.0,0.00016774,2]
[399784390,1766674253094,-150.0,0.00016774,2]
[399784391,1766674253104,-156.21307766,0.0001678,2]
[399784392,1766674253115,-292.93832902,0.0001678,2]
[399784393,1766674253125,-257.56632954,0.0001678,2]
[399784394,1766674253136,-189.76876158,0.0001678,2]
[399784395,1766674253147,-203.57359453,0.0001678,2]
[399784396,1766674253159,-150.0,0.0001678,2]
[399784397,1766674253169,-396.36220514,0.0001678,2]
[399784398,1766674253180,-150.0,0.00016782,2]
[399784399,1766674253191,-150.0,0.00016788,2]
[399784400,1766674253202,-156.21307766,0.00016798,2]
[399784401,1766674253212,-292.93832902,0.00016798,2]
[399784402,1766674253223,-257.56632954,0.00016798,2]
[399784403,1766674253234,-189.76876158,0.00016798,2]
[399784404,1766674253245,-203.57359453,0.00016798,2]
[399784405,1766674253256,-396.36220514,0.00016798,2]
[399784406,1766674253267,-150.0,0.00016803,2]
[399784407,1766674253279,-150.0,0.0001681,2]
[399784408,1766674253290,-156.21307766,0.00016815,2]
[399784409,1766674253301,-292.93832902,0.00016815,2]
[399784410,1766674253313,-257.56632954,0.00016815,2]
[399784411,1766674253324,-189.76876158,0.00016815,2]
[399784412,1766674253337,-203.57359453,0.00016815,2]
[399784413,1766674253351,-396.36220514,0.00016815,2]
[399784414,1766674253361,-150.0,0.00016816,2]
[399784415,1766674253371,-168.0,0.00016826,2]
[399784416,1766674253383,-156.21307766,0.00016832,2]
[399784417,1766674253395,-292.93832902,0.00016832,2]
[399784418,1766674253407,-257.56632954,0.00016832,2]
[399784419,1766674253418,-189.76876158,0.00016832,2]
[399784420,1766674253429,-203.57359453,0.00016832,2]
[399784421,1766674253440,-150.0,0.00016832,2]
[399784422,1766674253450,-396.36220514,0.00016832,2]
[399784423,1766674253462,-150.0,0.00016832,2]
[399784424,1766674253473,-150.0,0.00016845,2]
[399784425,1766674253483,-150.0,0.00016845,2]
[399784426,1766674253494,-150.0,0.00016849,2]
[399784427,1766674253504,-156.21307766,0.00016849,2]
[399784428,1766674253515,-292.93832902,0.00016849,2]
[399784429,1766674253527,-257.56632954,0.00016849,2]
[399784430,1766674253538,-189.76876158,0.00016849,2]
[399784431,1766674253549,-203.57359453,0.00016849,2]
[399784432,1766674253560,-396.36220514,0.00016849,2]
[399784433,1766674253571,-150.0,0.0001685,2]
[399784434,1766674253582,-150.0,0.00016854,2]
[399784435,1766674253593,-200.0,0.00016863,2]
[399784436,1766674253603,-156.21307766,0.00016866,2]
[399784437,1766674253615,-292.93832902,0.00016866,2]
[399784438,1766674253626,-257.56632954,0.00016866,2]
[399784439,1766674253636,-189.76876158,0.00016866,2]
[399784440,1766674253647,-203.57359453,0.00016866,2]
[399784441,1766674253658,-396.36220514,0.00016866,2]
[399784442,1766674253669,-150.0,0.00016876,2]
[399784443,1766674253678,-25000.0,0.00016882,3]
[399784444,1766674253690,-156.21307766,0.00016883,2]
[399784445,1766674253701,-292.93832902,0.00016883,2]
[399784446,1766674253712,-257.56632954,0.00016883,2]
[399784447,1766674253724,-189.76876158,0.00016883,2]
[399784448,1766674253735,-203.57359453,0.00016883,2]
[399784449,1766674253745,-150.0,0.00016883,2]
[399784450,1766674253756,-396.36220514,0.00016883,2]
[399784451,1766674253765,-150.0,0.00016884,2]
[399784452,1766674253775,-25000.0,0.00016891,3]
[399784453,1766674253785,-150.0,0.00016894,2]
[399784454,1766674253795,-150.0,0.00016898,2]
[399784455,1766674253806,-1926.43051864,0.000169,3]
[399784456,1766674253816,-25000.0,0.000169,3]
[399784457,1766674253828,-170.28248417,0.000169,2]
[399784458,1766674253838,-385.26348,0.000169,2]
[399784459,1766674253848,-151.0,0.000169,2]
[399784460,1766674253859,-385.26348,0.000169,2]
[399784461,1766674253870,-151.0,0.000169,2]
[399784462,1766674253884,-385.26348,0.000169,2]
[399784463,1766674253894,-296.227164,0.000169,2]
[399784464,1766674253904,-385.26348,0.000169,2]
[399784465,1766674253913,-151.0,0.000169,2]
[399784466,1766674253922,-151.0,0.000169,2]
[399784467,1766674253933,-151.0,0.000169,2]
[399784468,1766674253943,-151.0,0.000169,2]
[399784469,1766674253953,-151.0,0.000169,2]
[399784470,1766674253964,-4224.8617779,0.000169,2]
[399784471,1766674253974,-151.0,0.000169,2]
[399784472,1766674253983,-151.0,0.000169,2]
[399784473,1766674253993,-151.0,0.000169,2]
[399784474,1766674254004,-201.01484,0.000169,2]
[399784475,1766674254014,-156.81485744,0.000169,2]
[399784476,1766674254024,-6397.42488084,0.000169,2]
[399784477,1766674254035,-789.11969302,0.000169,2]
[399784478,1766674254045,-552.65056801,0.000169,2]
[399784479,1766674254055,-156.21307766,0.00016901,2]
[399784480,1766674254066,-292.93832902,0.00016901,2]
[399784481,1766674254076,-257.56632954,0.00016901,2]
[399784482,1766674254086,-189.76876158,0.00016901,2]
[399784483,1766674254095,-203.57359453,0.00016901,2]
[399784484,1766674254106,-396.36220514,0.00016901,2]
[399784485,1766674254115,-30000.0,0.00016912,2]
[399784486,1766674254126,-150.0,0.00016916,2]
[399784487,1766674254136,-156.21307766,0.00016918,2]
[399784488,1766674254147,-292.93832902,0.00016918,2]
[399784489,1766674254158,-257.56632954,0.00016918,2]
[399784490,1766674254168,-189.76876158,0.00016918,2]
[399784491,1766674254178,-203.57359453,0.00016918,2]
[399784492,1766674254190,-396.36220514,0.00016918,2]
[399784493,1766674254201,-150.0,0.00016918,2]
[399784494,1766674254212,-150.0,0.0001692,2]
[399784495,1766674254223,-156.21307766,0.00016935,2]
[399784496,1766674254234,-292.93832902,0.00016935,2]
[399784497,1766674254244,-257.56632954,0.00016935,2]
[399784498,1766674254255,-189.76876158,0.00016935,2]
[399784499,1766674254265,-203.57359453,0.00016935,2]